Cogmind - Beta 14 @@@ ROGUE MODE // 2024.10.30 @ 23:02:13 Player: Crud Result: Destroyed by as-41648 with Assembled Blade Performance ------------- Evolutions (1) 500 Regions Visited (3) 600 Robots Destroyed (17) 85 Value Destroyed (535) 535 Prototype IDs (0) 0 Alien Tech Used (0) 0 Bonus (27) 27 TOTAL SCORE: 1747 Bonus ------- High Alert Combat Kills 27 Cogmind --------- Core Integrity 0/400 Matter 300/300 Energy 88/100 System Corruption 0% Temperature Cool (0) Movement Core (150) Ox2 Location -9/Mines Parts ------- > --- POWER (1) -------- (None) > --- PROPULSION (4) --- (None) > --- UTILITY (2) ------ Small Storage Unit > --- WEAPON (2) ------- Heavy Mace > --- INVENTORY (8) ---- Large Matter Pod (150) Terrain Scanner Core Shielding Ion Cannon Ion Cannon Peak State ------------ > --- POWER ------------ Ion Engine > --- PROPULSION ------- Flight Unit Flight Unit Flight Unit Flight Unit > --- UTILITY ---------- Small Storage Unit Terrain Scanner > --- WEAPON ----------- Ion Cannon Grenade Launcher > --- INVENTORY -------- Ion Engine Aluminum Leg Aluminum Leg Large Matter Pod Core Shielding Ion Cannon Light Assault Rifle Heavy Mace [Rating: 12] Favorites ----------- Power Ion Engine Engine Ion Engine Propulsion Flight Unit Leg Aluminum Leg Wheel Compact Wheel Flight Unit Flight Unit Utility Small Storage Unit Device Tractor Beam Storage Small Storage Unit Weapon Grenade Launcher Energy Gun Small Laser Energy Cannon Ion Cannon Ballistic Gun Assault Rifle Launcher Grenade Launcher Impact Weapon Heavy Mace Build | -11 -10 -9 -9 ------- Run | Yrd Mat Mat Min Slots Evolved 2 | . . 2 . Power . | . . . . Propulsion 2 | . . 2 . Utility . | . . . . Weapon . | . . . . Parts Attached 23 | . 2 20 1 Power 2 | . . 2 . Engine 2 | . . 2 . Core . | . . . . Reactor . | . . . . Propulsion 10 | . . 9 1 Treads . | . . . . Leg 2 | . . 2 . Wheel 1 | . . . 1 Hover . | . . . . Flight 7 | . . 7 . Utility 3 | . 1 2 . Device 3 | . 1 2 . Storage . | . . . . Processor . | . . . . Hackware . | . . . . Protection . | . . . . Artifact . | . . . . Weapon 8 | . 1 7 . Energy Gun 1 | . . 1 . Energy Cannon 2 | . . 2 . Ballistic Gun 2 | . . 2 . Ballistic Cannon . | . . . . Launcher 1 | . 1 . . Special Weapon . | . . . . Impact Weapon 2 | . . 2 . Slashing Weapon . | . . . . Piercing Weapon . | . . . . Special Melee Weapon . | . . . . Unidentified Prototypes . | . . . . Parts Lost 13 | . . 12 1 Power 2 | . . 2 . Propulsion 7 | . . 6 1 Utility 1 | . . 1 . Weapon 3 | . . 3 . Highest Loss Streak 7 | . . 7 1 To Critical Strikes . | . . . . Average Slot Usage (%) 76 | . 96 78 22 Engine 8 | . 14 7 . Leg 11 | . 28 2 . Flight 12 | . . 29 . Device 8 | . 10 9 . Storage 12 | . 14 11 11 Energy Gun 1 | . 2 . . Energy Cannon 1 | . . 2 . Ballistic Gun 9 | . 14 8 . Launcher 6 | . 11 4 . Impact Weapon 2 | . . 2 11 Peak Build Rating 12 | . 7 12 5 Average Rating 7 | . 6 8 4 On Entrance 5 | 6 6 7 4 Naked Turns . | . . . . Heaviest Build 16 | 13 16 16 8 Greatest Support 20 | 20 20 20 16 Greatest Overweight (x) 4 | . . 4 2 Average Overweight (x) . | . . . 1 Largest Inventory Capacity 8 | . 8 8 8 Average Capacity 8 | . 8 8 8 Most Carried 8 | . 8 8 6 Average Carried 6 | . 7 7 5 Final Capacity 8 | 8 8 8 8 Final Carried 8 | 6 8 5 5 Class Distribution -------------------- 79% | Mutant 20% | Sprinter Dominant Class ---------------- Mutant | -10/Materials Mutant | -9/Materials Mutant | -9/Mines Resources | -11 -10 -9 -9 ----------- Run | Yrd Mat Mat Min Matter Collected 660 | 188 17 410 45 Remotely 102 | . 17 85 . Salvage Created 548 | . 40 410 98 Parts 26 | . 8 15 3 Haulers Intercepted . | . . . . Recyclers Shooed . | . . . . Parts Field Recycled . | . . . . Retrieved Matter . | . . . . Parts Self-Destructed . | . . . . Prevented . | . . . . Kills | -11 -10 -9 -9 ------- Run | Yrd Mat Mat Min Combat Hostiles Destroyed 14 | . 3 11 . Melee 3 | . . 3 . Guns 4 | . . 4 . Cannons 4 | . . 4 . AOE 3 | . 3 . . Classes Destroyed 6 | . 2 3 1 Worker 1 | . . 1 . Tunneler 1 | . 1 . . Recycler 1 | . . . 1 Swarmer 3 | . . 3 . Grunt 10 | . 3 7 . Sentry 1 | . . 1 . Best Kill Streak 4 | . 4 4 1 Combat Bots Only 3 | . 3 3 . Max Kills in Single Turn 3 | . 3 1 1 Gunslinging . | . . . . Exploded 2 | . 2 . . Melee 1 | . . 1 . Uniques/NPCs Destroyed . | . . . . Combat | -11 -10 -9 -9 -------- Run | Yrd Mat Mat Min Hostile Shots Fired 166 | . 22 124 20 Missed 49 | . 8 33 8 Damage Taken 1493 | . 125 1160 208 Core 426 | . 7 261 158 Absorbed by Shields . | . . . . Regen/Repaired (Parts) 11 | . . 11 . Core Remaining (%) 98 | 100 97 . . Volleys Fired 57 | . 5 52 . Largest 2 | . 2 2 . Hottest 80 | . 50 80 . Shots Fired 73 | . 8 65 . Gun 41 | . 5 36 . Cannon 29 | . . 29 . Launcher 3 | . 3 . . Special . | . . . . Kinetic 38 | . 5 33 . Thermal 29 | . . 29 . Explosive 3 | . 3 . . Electromagnetic 3 | . . 3 . Robot Hit Streak 12 | . 6 12 . Robot Miss Streak 3 | . 1 3 . Penetration Max . | . . . . Secondary Targets . | . . . . Shots Hit Robots 56 | . 6 49 1 Core Hits 21 | . 7 13 1 Critical Kills 1 | . . 1 . Critical Parts Destroyed 2 | . . 2 . Critical Strikes 3 | . . 3 . Destroy 1 | . . 1 . Smash 2 | . . 2 . Melee Attacks 7 | . . 6 1 Impact 7 | . . 6 1 Slashing . | . . . . Piercing . | . . . . Sneak Attacks 2 | . . 1 1 Combat Hostiles . | . . . . Follow-up Attacks . | . . . . Damage Inflicted 1487 | . 437 1001 49 Guns 275 | . 39 236 . Cannons 527 | . . 527 . Explosions 398 | . 398 . . Melee 287 | . . 238 49 Ramming . | . . . . Kinetic 259 | . 39 220 . Thermal 758 | . 231 527 . Explosive 167 | . 167 . . Electromagnetic 16 | . . 16 . Impact 287 | . . 238 49 Slashing . | . . . . Piercing . | . . . . Highest Corruption . | . . . . Average Corruption . | . . . . Corruption Purged . | . . . . Corruption Blocked . | . . . . Overload Shots . | . . . . Overflow Damage 133 | . 21 112 . Projectiles 24 | . . 24 . Explosions 21 | . 21 . . Melee 88 | . . 88 . Knockbacks . | . . . . Impact . | . . . . Kinetic . | . . . . Secondary . | . . . . Self-Inflicted Damage . | . . . . Shots . | . . . . Rammed . | . . . . Targets Rammed . | . . . . Kicked . | . . . . Crushed . | . . . . Highest Temperature 503 | . 12 503 . Average Temperature 174 | . 6 184 . Received Heat Transfer 564 | . 30 534 . Effects 7 | . . 7 . Energy Bleed 1 | . . 1 . Interference 1 | . . 1 . Matter Decay 1 | . . 1 . Damage (minor) 1 | . . 1 . Damage (major) 3 | . . 3 . Siege Activations . | . . . . Robots Corrupted . | . . . . Combat Hostiles . | . . . . Parts Fried 3 | . . 3 . Impact Corruptions 4 | . . 4 . Robots Melted . | . . . . Combat Hostiles . | . . . . Parts Melted 1 | . 1 . . Heat Transferred 1001 | . 150 851 . Parts Sabotaged . | . . . . Parts Stolen . | . . . . Parts Stripped . | . . . . Power Chain Reactions . | . . . . Alert | -11 -10 -9 -9 ------- Run | Yrd Mat Mat Min Peak Influence 457 | . 206 457 174 Initial 174 | . . 86 174 Average 172 | . 76 258 172 Maximum Alert Level 2 | . 1 2 . Low Security (%) 66 | . 80 42 100 Level 1 23 | . 19 35 . Level 2 9 | . . 22 . Level 3 . | . . . . Level 4 . | . . . . Level 5 . | . . . . High Security . | . . . . Max Security . | . . . . Squads Dispatched 3 | . 1 2 . Investigation 3 | . 1 2 . Extermination . | . . . . Reinforcement . | . . . . Assault . | . . . . Garrison . | . . . . Intercept . | . . . . Searches Triggered . | . . . . Construction Impeded . | . . . . Haulers Reinforced . | . . . . Active Scanning Responses . | . . . . Cargo Convoy Interrupts . | . . . . Stealth | -11 -10 -9 -9 --------- Run | Yrd Mat Mat Min Distress Signals . | . . . . Communications Jammed . | . . . . Distress Signals . | . . . . Times Spotted 44 | . 7 22 15 Peak Tracking Total 18 | . 5 7 18 Tactical Retreats 4 | . 1 2 1 Traps | -11 -10 -9 -9 ------- Run | Yrd Mat Mat Min Traps Triggered 2 | . 1 1 . Indirectly . | . . . . Trap Hack Attempts . | . . . . Triggered . | . . . . Disarmed . | . . . . Reprogrammed . | . . . . Reused . | . . . . Traps Extracted . | . . . . Installed . | . . . . Triggered . | . . . . Machines | -11 -10 -9 -9 ---------- Run | Yrd Mat Mat Min Machines Disabled 2 | . 2 . . Max in Single Turn 1 | . 1 . . Machines Repaired . | . . . . Machines Dismantled . | . . . . Machines Sabotaged 1 | . . 1 . Overloaded Fab Kills . | . . . . Hacking | -11 -10 -9 -9 --------- Run | Yrd Mat Mat Min Machines Accessed 7 | . 3 4 . Terminals 6 | . 3 3 . Fabricators . | . . . . Repair Stations 1 | . . 1 . Recycling Units . | . . . . Scanalyzers . | . . . . Garrison Access . | . . . . Total Hacks 15 | . 4 11 . Successful 8 | . 3 5 . Failed 7 | . 1 6 . Catastrophic 1 | . 1 . . Database Lockouts . | . . . . Manual 5 | . 1 4 . Terminals 12 | . 4 8 . Fabricators . | . . . . Repair Stations 3 | . . 3 . Recycling Units . | . . . . Scanalyzers . | . . . . Garrison Access . | . . . . Terminal Hacks 3 | . 2 1 . Robot Analysis 1 | . 1 . . Hauler Manifests 2 | . 1 1 . Fabricator Hacks . | . . . . Repair Station Hacks 2 | . . 2 . Scan Component 1 | . . 1 . Repair 1 | . . 1 . Recycling Unit Hacks . | . . . . Scanalyzer . | . . . . Garrison Access Hacks . | . . . . Unauthorized Hacks 3 | . 1 2 . Terminals 3 | . 1 2 . Track 1 | . 1 . . Sabotage 2 | . . 2 . Fabricators . | . . . . Repair Stations . | . . . . Recycling Units . | . . . . Scanalyzers . | . . . . Garrison Access . | . . . . Data Cores Recovered . | . . . . Used . | . . . . Hacking Detections 3 | . 2 1 . Full Trace Events . | . . . . Feedback Events . | . . . . Feedback Blocked . | . . . . Robot Schematics Acquired . | . . . . Robots Built . | . . . . Authchips . | . . . . Time . | . . . . Total Robot Build Rating . | . . . . Part Schematics Acquired . | . . . . Parts Built . | . . . . Authchips . | . . . . Time . | . . . . Total Part Build Rating . | . . . . Parts Repaired 1 | . . 1 . Time 26 | . . 26 . Parts Recycled . | . . . . Recycled Matter . | . . . . Retrieved Matter . | . . . . Retrieved Components . | . . . . Parts Scanalyzed . | . . . . Part Schematics Acquired . | . . . . Parts Damaged . | . . . . Bothacking | -11 -10 -9 -9 ------------ Run | Yrd Mat Mat Min Used RIF Installer . | . . . . Robots Hacked . | . . . . Non-combat . | . . . . Combat . | . . . . Robot Hacks Applied . | . . . . Relay Couplers Released . | . . . . Fabnet Peak Effective % . | . . . . Robots Rewired . | . . . . Allies Hacked . | . . . . Hacks Repelled . | . . . . Allies | -11 -10 -9 -9 -------- Run | Yrd Mat Mat Min Total Allies 2 | . . . 2 Largest Group 2 | . . . 2 Highest-Rated Group 45 | . . . 45 Highest-Rated Ally 31 | . . . 31 Total Orders . | . . . . Ally Attacks 4 | . . . 4 Total Damage 20 | . . . 20 Kills 1 | . . . 1 Allies Corrupted . | . . . . Allies Melted . | . . . . Intel | -11 -10 -9 -9 ------- Run | Yrd Mat Mat Min Robot Analysis Total 1 | . 1 . . Derelict Logs Recovered . | . . . . Drone Launches . | . . . . Drone Recoveries . | . . . . Exploration | -11 -10 -9 -9 ------------- Run | Yrd Mat Mat Min Turns Passed 860 | . 342 384 134 Spaces Moved 783 | 1 258 437 87 Core 110 | . . 24 86 Treads . | . . . . Legs 267 | 1 258 8 . Wheels 1 | . . . 1 Hover . | . . . . Flight 405 | . . 405 . Fastest Speed 31 | 120 120 31 100 Average Speed 80 | 120 120 42 149 Slowest Speed 250 | 120 120 250 150 Overloaded Moves . | . . . . Propulsion Burnouts . | . . . . Robots Hopped . | . . . . Cave-ins Triggered . | . . . . Exploration Rate (%) 27 | 2 50 32 26 Regions Visited 3 Branch Regions 1 Pre-discovered Areas . | . . . . Known Exits Taken . | . . . . Unknown Exits Taken 3 | 1 1 1 . Scrap Searched . | . . . . Spaces Dug . | . . . . Terrain Destroyed 21 | . 21 . . Melee . | . . . . Projectile . | . . . . AOE 21 | . 21 . . Terrain Rammed . | . . . . Walls Destroyed . | . . . . Machines Disabled . | . . . . Actions | -11 -10 -9 -9 --------- Run | Yrd Mat Mat Min Total 938 | . 285 563 90 Wait 37 | . 8 29 . Move 780 | . 257 436 87 Hop . | . . . . Pick Up 19 | . 8 10 1 Fast Attach 1 | . . 1 . Attach 14 | . 2 11 1 Detach 4 | . . 4 . Swap 8 | . . 8 . Drop 11 | . 5 6 . Fire 57 | . 5 52 . Melee 7 | . . 6 1 Ram . | . . . . Kick . | . . . . Crush . | . . . . Escape Stasis . | . . . . Rewire . | . . . . Trap . | . . . . Miscellaneous . | . . . . Route ------- -11/Scrapyard -10/Materials (discovered 2 exits: *Mat / [*Min]) -9/Materials -9/Mines History --------- Turn | Location | Event 1 | -11/Scrapyard | Discovered new exit (range 0) 1 | -11/Scrapyard | Entered Materials 110 | -10/Materials | Discovered new exit (range 8) 313 | -10/Materials | Build established: Mutant 323 | -10/Materials | Discovered new exit (range 16) 343 | -10/Materials | Entered another Materials area 343 | -9/Materials | Evolved 2 slots: Propulsion x2 397 | -9/Materials | Repaired Flight Unit 560 | -9/Materials | Discovered new exit (range 11) 660 | -9/Materials | Core integrity fell below 50% 727 | -9/Materials | Entered Mines 734 | -9/Mines | Lost 7 parts (4n1u2w) 745 | -9/Mines | Received a Rocket Launcher from a helpful Derelict 832 | -9/Mines | Assembled infested the area 837 | -9/Mines | Assisted by a Guerilla fighting off Assembled 861 | -9/Mines | Core integrity fell below 20% 861 | -9/Mines | Destroyed by as-41648 with Assembled Blade Last Messages --------------- need to get out of here! I've been tracking a group of Assembled to figure out where they're coming from, and they're closing on this area, come on!" 00850_ W7-6YE(h): "I'll hold them off! Go on ahead or try to find another way!" 00850_ HV Slug penetrates as-81786. 00850_ as-81786 suffers critical hit (Destroy). 00850_ as-81786 destroyed. 00851_ as-35913 destroyed. 00852_ Sneak attack on R-06 Scavenger. 00852_ R-06 Scavenger destroyed. 00852_ CI-ZQR(g) destroyed. 00854_ W7-6YE(h) destroyed. 00855_ Acquired 35 matter. 00856_ T-07 Excavator destroyed. 00858_ Acquired Com. Wheel. 00860_ Acquired 10 matter. 00860_ Com. Wheel destroyed. 00860_ as-22592 destroyed. Map ----- +----------------------------------------------------+ | ?????????????????????????????????????????????????? | | ?????????????????????????????????????????????????? | | ?????????????????????????????????????????????????? | | ?????????????????????????????????????????????????? | | ?????????????????????????????????????????????????? | | ?????????????????????????????????????????????????? | | ?????????????????????????????????????????????????? | | ?????????????????????????????????????????????????? | | ?????????????????????????????????????????????????? | | ?????????????????????????####????????????????????? | | ????????????????????????? #????????????????????? | | ????????????????????????? #????????????????????? | | ?????????????????????????# #???###??????????????? | | ?????????????????????????# #### #### *????????? | | ????????????????????????## ????????? | | ????????????????????????# ???????? | | ????????????????????????# % ???????????? | | ???????????????????????## aaa #??????????????????? | | ???????????????????????# a!%##??????????????????? | | ???????????????????????# !%aa##??????????????????? | | ???????????????????????##%]= #??????????????????? | | ????????????????????????# |% #??????????????????? | | ???????????????????????## a ##??????????????????? | | ??????????????????????## aaa##???????????????????? | | ???"""????????????????# a%a##???????????????????? | | ???? ????????????????# @! ####????????????????? | | ???? ???????????????## ##???????????????? | | ????# ??????????????## #???????????????? | | ????# ?????????##### #???????????????? | | ????? ###??????# #???????????????? | | ????? ??????# % ### ## #???????????????? | | ?????# #?????? #??###### #???????????????? | | ??#### ##????# #???????# ##???????????????? | | ??# #????## #### #???# ##????????????????? | | ??# #?????# #????####?????????????????? | | ### #???### #?????????????????????????? | | """ #??## ###?????????????????????????? | | """ #### ##???????????????????????????? | | # # """ #####????????????????????????????? | | ??# ##### ##????????????????????????????????? | | ??# #???###?????????????????????????????????? | | ??#### ###???????????????????????????????????????? | | ?????# #?????????????????????????????????????????? | | ?????# #?????????????????????????????????????????? | | ?????# #?????????????????????????????????????????? | | ????# #?????????????????????????????????????????? | | ### #?????????????????????????????????????????? | | #?????????????????????????????????????????? | | ### #?????????????????????????????????????????? | | ????# #??####?##### ?????????????????????????? | +----------------------------------------------------+ Best States ------------- Heat Dissipation 38 Energy Generation 10 Energy Capacity 250 Matter Stores 300 Matter Capacity 300 Sight Range 16 Terrain Scan Range 14 Terrain Scan Density 10 Evasion (%) 63 Item Schematics ----------------- None Robot Schematics ------------------ None Fabricated ------------ Nothing Alien Tech Used ----------------- None Achievements -------------- None Challenges ------------ None Game ------ Seed TransportCentriumLink Manual? 0 Play Time 00:25:19 Cumulative 38.5 hours Start 2024.10.30 @ 22:30:46 End 2024.10.30 @ 23:02:13 Sessions 1 Manual Loads 0 Difficulty Rogue Special Mode None Game No. 43 Rogue 43 Adventurer 0 Explorer 0 Win Type - Total 0 Types 0/0/0/0/0/0/0/0/0 Lore% 22 Gallery% 35 Achievement% 29 Wizard Run 0 Options --------- Layout 1 ASCII 0 Keyboard 0 Movement Arrows Keybinds 0 Fullscreen 1 Font 16/SmallcapsGlow Map View 50x40 Zoom Use 0% Tactical HUD 1 Map Filters NONE Filters NONE Steam SD RUN: 7ead5fd7-ff03-4c40-ba20-6a0503fedd2c